[Event "Late-Titled-Tuesday-Blitz-April-02-2024"]
[Site "Chess.com"]
[Date "2024.04.02"]
[Round "6"]
[White "BabageldiAnnaberdiyev"]
[Black "Flaccidmoves"]
[Result "1/2-1/2"]
[WhiteElo "2584"]
[BlackElo "2411"]
[TimeControl "180+1"]
[EndTime "15:05:22 PDT"]
[Termination "Game drawn - insufficient material"]

1. e4 {[%clk 0:02:58.2]} 1... d6 {[%clk 0:02:54.6]} 2. d4 {[%clk 0:02:56.2]}
2... Nf6 {[%clk 0:02:54.9]} 3. Nc3 {[%clk 0:02:56.6]} 3... e5 {[%clk 0:02:55.4]}
4. Nf3 {[%clk 0:02:56.2]} 4... Nbd7 {[%clk 0:02:54.8]} 5. Bc4 {[%clk 0:02:56]}
5... Be7 {[%clk 0:02:54.2]} 6. O-O {[%clk 0:02:55.9]} 6... O-O {[%clk
0:02:53.6]} 7. Re1 {[%clk 0:02:56.3]} 7... c6 {[%clk 0:02:52.9]} 8. a4 {[%clk
0:02:55.1]} 8... b6 {[%clk 0:02:47.6]} 9. Bg5 {[%clk 0:02:50.3]} 9... Qc7 {[%clk
0:02:40.8]} 10. d5 {[%clk 0:02:41.1]} 10... cxd5 {[%clk 0:02:36.9]} 11. Nxd5
{[%clk 0:02:39.1]} 11... Qxc4 {[%clk 0:02:17.8]} 12. Nxe7+ {[%clk 0:02:38.3]}
12... Kh8 {[%clk 0:02:18.3]} 13. Qxd6 {[%clk 0:02:11.1]} 13... Nxe4 {[%clk
0:01:38.5]} 14. Rxe4 {[%clk 0:02:10]} 14... Qxe4 {[%clk 0:01:38.9]} 15. Nxc8
{[%clk 0:02:09.6]} 15... Raxc8 {[%clk 0:01:32.1]} 16. Qxd7 {[%clk 0:02:09.7]}
16... f6 {[%clk 0:01:22.7]} 17. Be3 {[%clk 0:02:07.9]} 17... Rxc2 {[%clk
0:01:21.3]} 18. Qxa7 {[%clk 0:02:06]} 18... Rxb2 {[%clk 0:01:19.8]} 19. h3
{[%clk 0:02:01.5]} 19... Ra8 {[%clk 0:01:16.6]} 20. Qf7 {[%clk 0:01:52.4]} 20...
Rb1+ {[%clk 0:01:06.1]} 21. Rxb1 {[%clk 0:01:51.9]} 21... Qxb1+ {[%clk 0:01:07]}
22. Kh2 {[%clk 0:01:52.4]} 22... Qe4 {[%clk 0:00:47.8]} 23. h4 {[%clk
0:01:39.1]} 23... Qxa4 {[%clk 0:00:42.3]} 24. h5 {[%clk 0:01:37.5]} 24... Qe8
{[%clk 0:00:38.9]} 25. Qxe8+ {[%clk 0:01:36.1]} 25... Rxe8 {[%clk 0:00:38.6]}
26. Bxb6 {[%clk 0:01:36.9]} 26... Kg8 {[%clk 0:00:31]} 27. h6 {[%clk 0:01:32.3]}
27... gxh6 {[%clk 0:00:28.2]} 28. Nh4 {[%clk 0:01:32]} 28... Kf7 {[%clk
0:00:23.5]} 29. Be3 {[%clk 0:01:29.8]} 29... h5 {[%clk 0:00:20.5]} 30. Kg3
{[%clk 0:01:24]} 30... Rg8+ {[%clk 0:00:20.1]} 31. Kf3 {[%clk 0:01:23.8]} 31...
Rg4 {[%clk 0:00:20.7]} 32. g3 {[%clk 0:01:24.2]} 32... Ke6 {[%clk 0:00:20.3]}
33. Ke2 {[%clk 0:01:12.3]} 33... Ra4 {[%clk 0:00:20.3]} 34. Nf3 {[%clk
0:01:11.6]} 34... Kf5 {[%clk 0:00:17.9]} 35. Kf1 {[%clk 0:01:04.5]} 35... Kg4
{[%clk 0:00:17]} 36. Kg2 {[%clk 0:01:04.3]} 36... Kf5 {[%clk 0:00:13.5]} 37. Nd2
{[%clk 0:00:58.9]} 37... h4 {[%clk 0:00:12.2]} 38. Nb3 {[%clk 0:00:56.1]} 38...
hxg3 {[%clk 0:00:11.1]} 39. Kxg3 {[%clk 0:00:57]} 39... Ra3 {[%clk 0:00:10.3]}
40. Nc5 {[%clk 0:00:56.7]} 40... h5 {[%clk 0:00:08.6]} 41. Kh4 {[%clk
0:00:52.5]} 41... Kg6 {[%clk 0:00:07.9]} 42. Ne6 {[%clk 0:00:51.4]} 42... f5
{[%clk 0:00:07.8]} 43. Nf8+ {[%clk 0:00:46.6]} 43... Kf7 {[%clk 0:00:07.2]} 44.
Nd7 {[%clk 0:00:44.7]} 44... f4 {[%clk 0:00:06.5]} 45. Nxe5+ {[%clk 0:00:44]}
45... Ke6 {[%clk 0:00:06.3]} 46. Bxf4 {[%clk 0:00:44.5]} 46... Kf5 {[%clk
0:00:06.4]} 47. Bg3 {[%clk 0:00:42.4]} 47... Ra1 {[%clk 0:00:03.9]} 48. Kh3
{[%clk 0:00:36]} 48... Rh1+ {[%clk 0:00:04.8]} 49. Kg2 {[%clk 0:00:36.2]} 49...
Ra1 {[%clk 0:00:05.2]} 50. Nf3 {[%clk 0:00:36.6]} 50... Ra2 {[%clk 0:00:05.2]}
51. Nd4+ {[%clk 0:00:34.7]} 51... Kg4 {[%clk 0:00:05.5]} 52. Nb5 {[%clk
0:00:33.3]} 52... h4 {[%clk 0:00:05.7]} 53. Bd6 {[%clk 0:00:28.7]} 53... h3+
{[%clk 0:00:06.1]} 54. Kg1 {[%clk 0:00:28.4]} 54... Ra1+ {[%clk 0:00:05.3]} 55.
Kh2 {[%clk 0:00:28.1]} 55... Ra2 {[%clk 0:00:05.9]} 56. Bg3 {[%clk 0:00:27.4]}
56... Ra1 {[%clk 0:00:05.1]} 57. Nd4 {[%clk 0:00:26.8]} 57... Ra2 {[%clk
0:00:05.4]} 58. Nc6 {[%clk 0:00:24]} 58... Ra1 {[%clk 0:00:05.7]} 59. Ne5+
{[%clk 0:00:24.4]} 59... Kf5 {[%clk 0:00:05.2]} 60. Kxh3 {[%clk 0:00:25.1]}
60... Rf1 {[%clk 0:00:05.1]} 61. Nf3 {[%clk 0:00:22.9]} 61... Ra1 {[%clk
0:00:04.6]} 62. Kg2 {[%clk 0:00:23.1]} 62... Ra2 {[%clk 0:00:04.5]} 63. Nd4+
{[%clk 0:00:22.9]} 63... Ke4 {[%clk 0:00:04.9]} 64. Nb3 {[%clk 0:00:23.7]} 64...
Rb2 {[%clk 0:00:04.9]} 65. Nc5+ {[%clk 0:00:23.6]} 65... Kf5 {[%clk 0:00:04.8]}
66. Nd3 {[%clk 0:00:22.7]} 66... Ra2 {[%clk 0:00:05]} 67. Ne1 {[%clk 0:00:23.2]}
67... Ra1 {[%clk 0:00:05]} 68. Nc2 {[%clk 0:00:23.1]} 68... Ra2 {[%clk
0:00:05.4]} 69. Ne3+ {[%clk 0:00:23]} 69... Ke4 {[%clk 0:00:05.9]} 70. Nc4
{[%clk 0:00:23.2]} 70... Kf5 {[%clk 0:00:06.1]} 71. Kf3 {[%clk 0:00:20]} 71...
Ra1 {[%clk 0:00:05.6]} 72. Ne3+ {[%clk 0:00:20.9]} 72... Kf6 {[%clk 0:00:05.3]}
73. Bd6 {[%clk 0:00:21.3]} 73... Ke6 {[%clk 0:00:05.6]} 74. Bc5 {[%clk
0:00:21.8]} 74... Ra2 {[%clk 0:00:05.6]} 75. Bd4 {[%clk 0:00:22.2]} 75... Kf7
{[%clk 0:00:04.4]} 76. Ke4 {[%clk 0:00:22.7]} 76... Rxf2 {[%clk 0:00:04.4]} 77.
Nd5 {[%clk 0:00:22.6]} 77... Rd2 {[%clk 0:00:04.2]} 78. Be5 {[%clk 0:00:22]}
78... Rxd5 {[%clk 0:00:04.6]} 79. Kxd5 {[%clk 0:00:22.9]} 1/2-1/2

[Event "Late-Titled-Tuesday-Blitz-April-02-2024"]
[Site "Chess.com"]
[Date "2024.04.02"]
[Round "6"]
[White "Smiechu"]
[Black "Dhaydon19"]
[Result "1-0"]
[WhiteElo "2504"]
[BlackElo "2645"]
[TimeControl "180+1"]
[EndTime "15:05:37 PDT"]
[Termination "Smiechu won by checkmate"]

1. e4 {[%clk 0:03:00.9]} 1... e5 {[%clk 0:02:58.4]} 2. Nf3 {[%clk 0:03:00.8]}
2... Nf6 {[%clk 0:02:58.2]} 3. Nxe5 {[%clk 0:02:58.4]} 3... d6 {[%clk
0:02:57.8]} 4. Nf3 {[%clk 0:02:58.2]} 4... Nxe4 {[%clk 0:02:57.9]} 5. Nc3 {[%clk
0:02:58.2]} 5... Nxc3 {[%clk 0:02:57.4]} 6. dxc3 {[%clk 0:02:58.8]} 6... Be7
{[%clk 0:02:58.1]} 7. Bd3 {[%clk 0:02:58.8]} 7... O-O {[%clk 0:02:58.3]} 8. Bf4
{[%clk 0:02:57.2]} 8... Nc6 {[%clk 0:02:57.6]} 9. Qd2 {[%clk 0:02:57.1]} 9...
Bf6 {[%clk 0:02:57.2]} 10. O-O-O {[%clk 0:02:56.4]} 10... Bg4 {[%clk 0:02:56.2]}
11. h3 {[%clk 0:02:51.3]} 11... Bxf3 {[%clk 0:02:53.8]} 12. gxf3 {[%clk
0:02:52.2]} 12... Ne5 {[%clk 0:02:54]} 13. Be4 {[%clk 0:02:45.7]} 13... Qe7
{[%clk 0:02:49.7]} 14. Rhe1 {[%clk 0:02:39.7]} 14... Rab8 {[%clk 0:02:41]} 15.
Be3 {[%clk 0:02:37.5]} 15... Nc4 {[%clk 0:02:38.5]} 16. Bxh7+ {[%clk 0:02:14.4]}
16... Kh8 {[%clk 0:02:32.5]} 17. Qd5 {[%clk 0:02:14.3]} 17... Nxe3 {[%clk
0:02:23.9]} 18. Qh5 {[%clk 0:01:48.4]} 18... Bg5 {[%clk 0:02:23.6]} 19. Bd3+
{[%clk 0:01:39.9]} 19... Bh6 {[%clk 0:02:19.8]} 20. fxe3 {[%clk 0:01:37.8]}
20... d5 {[%clk 0:02:11.6]} 21. Kb1 {[%clk 0:01:34.1]} 21... c6 {[%clk
0:02:11.1]} 22. e4 {[%clk 0:01:20.6]} 22... dxe4 {[%clk 0:02:08.9]} 23. Rxe4
{[%clk 0:01:17.4]} 23... Qf6 {[%clk 0:02:07.7]} 24. Rde1 {[%clk 0:01:12.8]}
24... b5 {[%clk 0:02:05.6]} 25. Qg4 {[%clk 0:01:03.7]} 25... a5 {[%clk
0:02:01.7]} 26. Re5 {[%clk 0:00:53.6]} 26... b4 {[%clk 0:01:50.8]} 27. Qe4
{[%clk 0:00:52.1]} 27... g6 {[%clk 0:01:46]} 28. h4 {[%clk 0:00:42.8]} 28...
bxc3 {[%clk 0:01:44.2]} 29. b3 {[%clk 0:00:43.1]} 29... Rb4 {[%clk 0:01:42.5]}
30. Bc4 {[%clk 0:00:39.2]} 30... a4 {[%clk 0:01:31.8]} 31. h5 {[%clk 0:00:32.9]}
31... axb3 {[%clk 0:01:30.4]} 32. axb3 {[%clk 0:00:33.1]} 32... Bd2 {[%clk
0:01:22.6]} 33. Rh1 {[%clk 0:00:26.5]} 33... g5 {[%clk 0:00:59]} 34. Re8 {[%clk
0:00:26.3]} 34... Rb8 {[%clk 0:00:54.6]} 35. Rxf8+ {[%clk 0:00:25.5]} 35... Rxf8
{[%clk 0:00:54]} 36. Bd3 {[%clk 0:00:26.2]} 36... Qh6 {[%clk 0:00:51.6]} 37. Qe7
{[%clk 0:00:23.5]} 37... Bf4 {[%clk 0:00:44]} 38. Re1 {[%clk 0:00:22.3]} 38...
c5 {[%clk 0:00:41.9]} 39. Qxc5 {[%clk 0:00:21]} 39... Bd2 {[%clk 0:00:37.8]} 40.
Re2 {[%clk 0:00:16.4]} 40... Rd8 {[%clk 0:00:35.2]} 41. Qe7 {[%clk 0:00:15.2]}
41... Rf8 {[%clk 0:00:31.9]} 42. Re4 {[%clk 0:00:13.4]} 42... Qg7 {[%clk
0:00:25.3]} 43. Rc4 {[%clk 0:00:10.8]} 43... f5 {[%clk 0:00:25.2]} 44. Qd6
{[%clk 0:00:07.1]} 44... Qf6 {[%clk 0:00:23.1]} 45. Qd7 {[%clk 0:00:05.1]} 45...
Qf7 {[%clk 0:00:21.7]} 46. Qd4+ {[%clk 0:00:04.4]} 46... Qf6 {[%clk 0:00:21.6]}
47. Qd7 {[%clk 0:00:03.6]} 47... Qg7 {[%clk 0:00:21.9]} 48. Qd6 {[%clk 0:00:03]}
48... g4 {[%clk 0:00:21.4]} 49. fxg4 {[%clk 0:00:02.7]} 49... fxg4 {[%clk
0:00:21.2]} 50. h6 {[%clk 0:00:03.1]} 50... Qxh6 {[%clk 0:00:21.1]} 51. Qxh6+
{[%clk 0:00:02.7]} 51... Bxh6 {[%clk 0:00:20.6]} 52. Rxg4 {[%clk 0:00:03.4]}
52... Bd2 {[%clk 0:00:20]} 53. b4 {[%clk 0:00:02.9]} 53... Rf6 {[%clk 0:00:19]}
54. Ka2 {[%clk 0:00:03]} 54... Rf2 {[%clk 0:00:18.6]} 55. Kb3 {[%clk 0:00:02.9]}
55... Rf6 {[%clk 0:00:17.8]} 56. b5 {[%clk 0:00:03.2]} 56... Be3 {[%clk
0:00:18.4]} 57. Kxc3 {[%clk 0:00:03.1]} 57... Bf2 {[%clk 0:00:18.4]} 58. Kb4
{[%clk 0:00:03.3]} 58... Be1+ {[%clk 0:00:18.6]} 59. c3 {[%clk 0:00:03.3]} 59...
Rf3 {[%clk 0:00:17]} 60. Rd4 {[%clk 0:00:03.3]} 60... Bf2 {[%clk 0:00:17.1]} 61.
Rc4 {[%clk 0:00:02.7]} 61... Kg7 {[%clk 0:00:16.6]} 62. Be4 {[%clk 0:00:01.5]}
62... Rf4 {[%clk 0:00:16.6]} 63. Bc6 {[%clk 0:00:02.4]} 63... Rf6 {[%clk
0:00:16.7]} 64. Rc5 {[%clk 0:00:02.6]} 64... Rf4+ {[%clk 0:00:15]} 65. Rc4
{[%clk 0:00:03.5]} 65... Rf6 {[%clk 0:00:14.5]} 66. Re4 {[%clk 0:00:03.3]} 66...
Bb6 {[%clk 0:00:15]} 67. c4 {[%clk 0:00:03.3]} 67... Kf8 {[%clk 0:00:15.1]} 68.
c5 {[%clk 0:00:03.6]} 68... Bc7 {[%clk 0:00:15.8]} 69. b6 {[%clk 0:00:04]} 69...
Rxc6 {[%clk 0:00:16.5]} 70. bxc7 {[%clk 0:00:04.3]} 70... Rxc7 {[%clk
0:00:17.1]} 71. Kb5 {[%clk 0:00:05]} 71... Re7 {[%clk 0:00:17.9]} 72. Rxe7
{[%clk 0:00:04.1]} 72... Kxe7 {[%clk 0:00:18.6]} 73. Kc6 {[%clk 0:00:04.7]}
73... Kd8 {[%clk 0:00:19.4]} 74. Kb7 {[%clk 0:00:05.1]} 74... Kd7 {[%clk
0:00:19.6]} 75. c6+ {[%clk 0:00:05.7]} 75... Kd6 {[%clk 0:00:20.1]} 76. c7
{[%clk 0:00:06.4]} 76... Kc5 {[%clk 0:00:20]} 77. c8=Q+ {[%clk 0:00:07.3]} 77...
Kb4 {[%clk 0:00:20.3]} 78. Qc6 {[%clk 0:00:07.9]} 78... Ka5 {[%clk 0:00:20.9]}
79. Kc7 {[%clk 0:00:07.7]} 79... Kb4 {[%clk 0:00:20.7]} 80. Kd6 {[%clk
0:00:08.6]} 80... Ka5 {[%clk 0:00:21.5]} 81. Kd5 {[%clk 0:00:09.1]} 81... Kb4
{[%clk 0:00:21.8]} 82. Qc5+ {[%clk 0:00:09.5]} 82... Ka4 {[%clk 0:00:22]} 83.
Qb6 {[%clk 0:00:09.8]} 83... Ka3 {[%clk 0:00:22.7]} 84. Kc4 {[%clk 0:00:10.5]}
84... Ka4 {[%clk 0:00:23.5]} 85. Qb4# {[%clk 0:00:10.3]} 1-0

[Event "Late-Titled-Tuesday-Blitz-April-02-2024"]
[Site "Chess.com"]
[Date "2024.04.02"]
[Round "6"]
[White "Revan_2002"]
[Black "RealPerangel"]
[Result "1/2-1/2"]
[WhiteElo "2736"]
[BlackElo "2560"]
[TimeControl "180+1"]
[EndTime "15:05:40 PDT"]
[Termination "Game drawn by repetition"]

1. d4 {[%clk 0:03:00.8]} 1... c5 {[%clk 0:02:54.1]} 2. e3 {[%clk 0:02:59.5]}
2... Nf6 {[%clk 0:02:54.3]} 3. Nf3 {[%clk 0:02:59.7]} 3... g6 {[%clk 0:02:54.9]}
4. dxc5 {[%clk 0:02:58.4]} 4... Qa5+ {[%clk 0:02:53.7]} 5. Nbd2 {[%clk
0:02:58.8]} 5... Qxc5 {[%clk 0:02:53.9]} 6. a3 {[%clk 0:02:59.4]} 6... Qc7
{[%clk 0:02:52.4]} 7. b4 {[%clk 0:02:59.4]} 7... Bg7 {[%clk 0:02:52.4]} 8. Bb2
{[%clk 0:02:59.8]} 8... O-O {[%clk 0:02:52.5]} 9. Be2 {[%clk 0:02:59]} 9... b6
{[%clk 0:02:52.9]} 10. O-O {[%clk 0:02:59.2]} 10... Bb7 {[%clk 0:02:53.6]} 11.
c4 {[%clk 0:02:59.6]} 11... d6 {[%clk 0:02:53.7]} 12. Rc1 {[%clk 0:03:00]} 12...
a5 {[%clk 0:02:51]} 13. Qb3 {[%clk 0:02:58.6]} 13... axb4 {[%clk 0:02:50.1]} 14.
axb4 {[%clk 0:02:59.5]} 14... e5 {[%clk 0:02:49.1]} 15. Nb1 {[%clk 0:02:57.9]}
15... Ne4 {[%clk 0:02:46.6]} 16. Nfd2 {[%clk 0:02:51.9]} 16... Nd7 {[%clk
0:02:42.8]} 17. Nxe4 {[%clk 0:02:49.1]} 17... Bxe4 {[%clk 0:02:43.7]} 18. Nc3
{[%clk 0:02:49.6]} 18... Bc6 {[%clk 0:02:43.6]} 19. Nd5 {[%clk 0:02:46.1]} 19...
Qd8 {[%clk 0:02:40.2]} 20. Ra1 {[%clk 0:02:39.8]} 20... Kh8 {[%clk 0:02:37.5]}
21. Rxa8 {[%clk 0:02:37]} 21... Qxa8 {[%clk 0:02:37.4]} 22. Ra1 {[%clk
0:02:37.7]} 22... Qb7 {[%clk 0:02:37]} 23. Bf3 {[%clk 0:02:30.9]} 23... f5
{[%clk 0:02:30]} 24. b5 {[%clk 0:02:28.9]} 24... Bxd5 {[%clk 0:02:29.2]} 25.
Bxd5 {[%clk 0:02:29.8]} 25... Qc7 {[%clk 0:02:29]} 26. Qa3 {[%clk 0:02:12.9]}
26... Nc5 {[%clk 0:02:18.1]} 27. Qa7 {[%clk 0:02:11.8]} 27... Qd8 {[%clk
0:02:07]} 28. f4 {[%clk 0:01:46.2]} 28... Bf6 {[%clk 0:02:00.9]} 29. fxe5 {[%clk
0:01:31.4]} 29... Bxe5 {[%clk 0:01:48.7]} 30. Bxe5+ {[%clk 0:01:20]} 30... dxe5
{[%clk 0:01:49.6]} 31. Kh1 {[%clk 0:01:20.1]} 31... e4 {[%clk 0:01:42.3]} 32. h3
{[%clk 0:01:02.5]} 32... Qf6 {[%clk 0:01:29.5]} 33. Rf1 {[%clk 0:01:03]} 33...
g5 {[%clk 0:01:25.2]} 34. Bc6 {[%clk 0:00:56.7]} 34... Qd8 {[%clk 0:01:09.4]}
35. Qa1+ {[%clk 0:00:50.5]} 35... Qf6 {[%clk 0:01:09]} 36. Qxf6+ {[%clk
0:00:20.7]} 36... Rxf6 {[%clk 0:01:08.4]} 37. Rd1 {[%clk 0:00:20.9]} 37... f4
{[%clk 0:01:06.9]} 38. exf4 {[%clk 0:00:18.8]} 38... Rxf4 {[%clk 0:01:06.2]} 39.
Rd8+ {[%clk 0:00:17.9]} 39... Kg7 {[%clk 0:01:05.6]} 40. Re8 {[%clk 0:00:17.1]}
40... Kf7 {[%clk 0:01:01.6]} 41. Kg1 {[%clk 0:00:12.5]} 41... h6 {[%clk
0:00:56.2]} 42. Re5 {[%clk 0:00:11.2]} 42... Kf6 {[%clk 0:00:53.8]} 43. Re8
{[%clk 0:00:11.7]} 43... Kf7 {[%clk 0:00:53.8]} 44. g3 {[%clk 0:00:10.6]} 44...
Rf3 {[%clk 0:00:50.5]} 45. Kg2 {[%clk 0:00:10]} 45... Rc3 {[%clk 0:00:48]} 46.
Re5 {[%clk 0:00:09.4]} 46... Rc2+ {[%clk 0:00:44.8]} 47. Kf1 {[%clk 0:00:09]}
47... Rxc4 {[%clk 0:00:44.5]} 48. Bd5+ {[%clk 0:00:08.3]} 48... Kf6 {[%clk
0:00:44.8]} 49. Re8 {[%clk 0:00:08.2]} 49... Rb4 {[%clk 0:00:42.6]} 50. Bc6
{[%clk 0:00:07.8]} 50... Rb2 {[%clk 0:00:41.6]} 51. Bxe4 {[%clk 0:00:04]} 51...
Rxb5 {[%clk 0:00:40.9]} 52. Bd5 {[%clk 0:00:03.8]} 52... Rb2 {[%clk 0:00:39.9]}
53. Rh8 {[%clk 0:00:03.8]} 53... Kg7 {[%clk 0:00:39.8]} 54. Rg8+ {[%clk
0:00:04.2]} 54... Kf6 {[%clk 0:00:40.1]} 55. Rh8 {[%clk 0:00:04.6]} 55... Kg7
{[%clk 0:00:38.5]} 56. Rg8+ {[%clk 0:00:04.3]} 56... Kh7 {[%clk 0:00:38.9]} 57.
Rc8 {[%clk 0:00:03.5]} 57... Rd2 {[%clk 0:00:36.6]} 58. Bc4 {[%clk 0:00:02.5]}
58... Rd6 {[%clk 0:00:35.6]} 59. Be2 {[%clk 0:00:02.4]} 59... Kg7 {[%clk
0:00:35.4]} 60. Rc7+ {[%clk 0:00:02.9]} 60... Kf6 {[%clk 0:00:35.6]} 61. Kf2
{[%clk 0:00:03.3]} 61... Ne6 {[%clk 0:00:35.2]} 62. Rb7 {[%clk 0:00:03]} 62...
Nd4 {[%clk 0:00:34]} 63. Bh5 {[%clk 0:00:02.3]} 63... Ke5 {[%clk 0:00:33.9]} 64.
Re7+ {[%clk 0:00:02.3]} 64... Re6 {[%clk 0:00:34.3]} 65. Rh7 {[%clk 0:00:02.2]}
65... b5 {[%clk 0:00:34]} 66. Rd7 {[%clk 0:00:02.5]} 66... Rd6 {[%clk
0:00:33.5]} 67. Rb7 {[%clk 0:00:02.6]} 67... Kd5 {[%clk 0:00:33.7]} 68. Bf7+
{[%clk 0:00:02.7]} 68... Kc5 {[%clk 0:00:33.8]} 69. Ke3 {[%clk 0:00:03.3]} 69...
Nf5+ {[%clk 0:00:33.1]} 70. Ke4 {[%clk 0:00:02.9]} 70... Rf6 {[%clk 0:00:32.9]}
71. Ke5 {[%clk 0:00:03.1]} 71... Nd6 {[%clk 0:00:29.6]} 72. Rc7+ {[%clk
0:00:01.7]} 72... Kb6 {[%clk 0:00:29.7]} 73. Kxf6 {[%clk 0:00:02.1]} 73... Kxc7
{[%clk 0:00:29.9]} 74. Bb3 {[%clk 0:00:03]} 74... Ne4+ {[%clk 0:00:29.2]} 75.
Kg6 {[%clk 0:00:02.8]} 75... Nxg3 {[%clk 0:00:29.8]} 76. Kxh6 {[%clk 0:00:03.3]}
76... Ne4 {[%clk 0:00:29.6]} 77. Bc2 {[%clk 0:00:03.1]} 77... Nf2 {[%clk
0:00:30]} 78. Bf5 {[%clk 0:00:02.7]} 78... Nxh3 {[%clk 0:00:29.1]} 79. Bxh3
{[%clk 0:00:02.3]} 79... b4 {[%clk 0:00:29.7]} 80. Kxg5 {[%clk 0:00:02.8]} 80...
b3 {[%clk 0:00:30.5]} 81. Bf5 {[%clk 0:00:03.5]} 81... b2 {[%clk 0:00:31.4]} 82.
Bb1 {[%clk 0:00:04]} 82... Kd6 {[%clk 0:00:32.3]} 83. Bc2 {[%clk 0:00:04.7]}
83... Kc5 {[%clk 0:00:33.2]} 84. Bb1 {[%clk 0:00:05.2]} 84... Kd4 {[%clk
0:00:34.1]} 85. Bh7 {[%clk 0:00:05.6]} 85... Ke3 {[%clk 0:00:35]} 86. Bg6 {[%clk
0:00:06]} 86... Kd2 {[%clk 0:00:35.9]} 87. Bb1 {[%clk 0:00:05.9]} 87... Kc1
{[%clk 0:00:36.8]} 88. Bg6 {[%clk 0:00:06.3]} 88... Kd1 {[%clk 0:00:37.7]} 89.
Bb1 {[%clk 0:00:06]} 89... Kc1 {[%clk 0:00:38.6]} 90. Ba2 {[%clk 0:00:06.1]}
90... Kd2 {[%clk 0:00:39.5]} 91. Bb1 {[%clk 0:00:06.1]} 91... Kc1 {[%clk
0:00:40.4]} 1/2-1/2

[Event "Late-Titled-Tuesday-Blitz-April-02-2024"]
[Site "Chess.com"]
[Date "2024.04.02"]
[Round "6"]
[White "Slovineanu"]
[Black "PonyQueen07"]
[Result "1-0"]
[WhiteElo "2467"]
[BlackElo "2266"]
[TimeControl "180+1"]
[EndTime "15:05:47 PDT"]
[Termination "Slovineanu won on time"]

1. d4 {[%clk 0:03:00.9]} 1... Nf6 {[%clk 0:03:00]} 2. Nf3 {[%clk 0:03:00.5]}
2... e6 {[%clk 0:02:59.7]} 3. c4 {[%clk 0:03:00.5]} 3... Bb4+ {[%clk 0:02:59.6]}
4. Nbd2 {[%clk 0:03:00.1]} 4... b6 {[%clk 0:02:58]} 5. a3 {[%clk 0:03:00.3]}
5... Bxd2+ {[%clk 0:02:57.3]} 6. Qxd2 {[%clk 0:03:00.7]} 6... Bb7 {[%clk
0:02:57.6]} 7. e3 {[%clk 0:03:00.7]} 7... d6 {[%clk 0:02:57.2]} 8. Bd3 {[%clk
0:03:00.6]} 8... Nbd7 {[%clk 0:02:57]} 9. O-O {[%clk 0:02:57.8]} 9... Ne4 {[%clk
0:02:47]} 10. Qc2 {[%clk 0:02:55.7]} 10... f5 {[%clk 0:02:46.7]} 11. b4 {[%clk
0:02:54.5]} 11... O-O {[%clk 0:02:44.3]} 12. Bb2 {[%clk 0:02:54.3]} 12... Ndf6
{[%clk 0:02:41.4]} 13. Nd2 {[%clk 0:02:43.6]} 13... Nxd2 {[%clk 0:02:30.9]} 14.
Qxd2 {[%clk 0:02:43.6]} 14... Ne4 {[%clk 0:02:30.6]} 15. Qe2 {[%clk 0:02:39.3]}
15... Qg5 {[%clk 0:02:27.4]} 16. f3 {[%clk 0:02:36.7]} 16... Nf6 {[%clk
0:02:25.6]} 17. Rac1 {[%clk 0:02:32.3]} 17... Nh5 {[%clk 0:02:10]} 18. Rc2
{[%clk 0:02:23.5]} 18... Rae8 {[%clk 0:02:06.8]} 19. c5 {[%clk 0:02:13.2]} 19...
dxc5 {[%clk 0:01:56]} 20. dxc5 {[%clk 0:02:13.2]} 20... Bd5 {[%clk 0:01:46.1]}
21. Be5 {[%clk 0:02:09.9]} 21... f4 {[%clk 0:01:23.3]} 22. exf4 {[%clk
0:01:54.5]} 22... Nxf4 {[%clk 0:01:22.1]} 23. Bxf4 {[%clk 0:01:54.6]} 23... Qxf4
{[%clk 0:01:16.8]} 24. cxb6 {[%clk 0:01:50.4]} 24... cxb6 {[%clk 0:01:14]} 25.
Bc4 {[%clk 0:01:43.7]} 25... Qd4+ {[%clk 0:01:01.7]} 26. Qf2 {[%clk 0:01:43.4]}
26... Qxf2+ {[%clk 0:00:58.5]} 27. Kxf2 {[%clk 0:01:43.2]} 27... Rc8 {[%clk
0:00:44.2]} 28. Rfc1 {[%clk 0:01:42.7]} 28... Bxc4 {[%clk 0:00:38.3]} 29. Rxc4
{[%clk 0:01:42.5]} 29... Rxc4 {[%clk 0:00:27.5]} 30. Rxc4 {[%clk 0:01:42]} 30...
g6 {[%clk 0:00:14.1]} 31. Ke3 {[%clk 0:01:40.8]} 31... Rf7 {[%clk 0:00:12]} 32.
Ke4 {[%clk 0:01:36.6]} 32... Kg7 {[%clk 0:00:07.9]} 33. Ke5 {[%clk 0:01:35.7]}
33... Re7 {[%clk 0:00:07.7]} 34. h4 {[%clk 0:01:27.9]} 34... Kf7 {[%clk
0:00:06]} 35. Rf4+ {[%clk 0:01:27.5]} 35... Ke8 {[%clk 0:00:05.5]} 36. g4 {[%clk
0:01:21.8]} 36... Kd7 {[%clk 0:00:05.2]} 37. Rd4+ {[%clk 0:01:21.8]} 37... Ke8
{[%clk 0:00:04.1]} 38. b5 {[%clk 0:01:15.3]} 38... Kf7 {[%clk 0:00:03]} 39. Rf4+
{[%clk 0:01:13.4]} 39... Ke8 {[%clk 0:00:02.9]} 40. Rf6 {[%clk 0:01:08.2]} 40...
Kd7 {[%clk 0:00:03.1]} 41. g5 {[%clk 0:01:05.4]} 41... Re8 {[%clk 0:00:02]} 42.
f4 {[%clk 0:01:01.6]} 42... Re7 {[%clk 0:00:01.9]} 43. h5 {[%clk 0:01:00.7]}
43... gxh5 {[%clk 0:00:01.6]} 44. Rh6 {[%clk 0:01:00.8]} 44... Rf7 {[%clk
0:00:01.5]} 45. a4 {[%clk 0:00:59.7]} 45... h4 {[%clk 0:00:01.7]} 46. Rxh4
{[%clk 0:00:59]} 46... Rf5+ {[%clk 0:00:02]} 47. Ke4 {[%clk 0:00:59.3]} 47...
Rf7 {[%clk 0:00:02.3]} 48. Rh6 {[%clk 0:00:57.2]} 48... Kd6 {[%clk 0:00:02.2]}
49. Rh1 {[%clk 0:00:45.4]} 49... Ke7 {[%clk 0:00:02.1]} 50. Rc1 {[%clk
0:00:44.4]} 50... Kd8 {[%clk 0:00:01.7]} 51. Rc4 {[%clk 0:00:38.2]} 51... Kd7
{[%clk 0:00:01.7]} 52. Rd4+ {[%clk 0:00:35.8]} 52... Ke7 {[%clk 0:00:02.1]} 53.
Rc4 {[%clk 0:00:29.9]} 53... Kd7 {[%clk 0:00:02.5]} 54. Rc3 {[%clk 0:00:29.3]}
54... Ke7 {[%clk 0:00:02.9]} 55. Rc7+ {[%clk 0:00:28]} 55... Ke8 {[%clk
0:00:03.3]} 56. Rc8+ {[%clk 0:00:17.4]} 56... Kd7 {[%clk 0:00:03.2]} 57. Ra8
{[%clk 0:00:17.6]} 57... Kd6 {[%clk 0:00:03.6]} 58. Rg8 {[%clk 0:00:16.8]} 58...
Kc5 {[%clk 0:00:03.4]} 59. Ke5 {[%clk 0:00:15.8]} 59... Kb4 {[%clk 0:00:02.4]}
60. Kxe6 {[%clk 0:00:10.2]} 60... Rxf4 {[%clk 0:00:02.6]} 61. Rg7 {[%clk
0:00:10.4]} 61... Rg4 {[%clk 0:00:01.8]} 62. Kf5 {[%clk 0:00:10.4]} 62... Rg1
{[%clk 0:00:01.7]} 63. Rxa7 {[%clk 0:00:10.5]} 63... Rf1+ {[%clk 0:00:01.9]} 64.
Kg4 {[%clk 0:00:10.8]} 64... Rg1+ {[%clk 0:00:02.1]} 65. Kf5 {[%clk 0:00:11.3]}
65... Rf1+ {[%clk 0:00:02.5]} 66. Ke6 {[%clk 0:00:11.8]} 66... Rg1 {[%clk
0:00:02.4]} 67. Kf6 {[%clk 0:00:11.8]} 67... Rf1+ {[%clk 0:00:02.6]} 68. Kg7
{[%clk 0:00:12]} 68... Rg1 {[%clk 0:00:02.9]} 69. Kf6 {[%clk 0:00:09.7]} 69...
Rf1+ {[%clk 0:00:03.2]} 70. Ke7 {[%clk 0:00:09.8]} 70... Rg1 {[%clk 0:00:02.4]}
71. Kd6 {[%clk 0:00:10.2]} 71... Rxg5 {[%clk 0:00:02.5]} 72. Kc6 {[%clk
0:00:09.4]} 72... Rg6+ {[%clk 0:00:02.6]} 73. Kb7 {[%clk 0:00:09]} 73... Rg7+
{[%clk 0:00:02]} 74. Ka6 {[%clk 0:00:09.3]} 74... Rg6 {[%clk 0:00:02.2]} 75.
Rxh7 {[%clk 0:00:08.3]} 75... Kxa4 {[%clk 0:00:01.6]} 76. Rh4+ {[%clk
0:00:08.9]} 76... Kb3 {[%clk 0:00:02.1]} 77. Re4 {[%clk 0:00:08.7]} 77... Kc3
{[%clk 0:00:02.4]} 78. Re8 {[%clk 0:00:07.9]} 78... Kb4 {[%clk 0:00:02.7]} 79.
Rb8 {[%clk 0:00:06.9]} 79... Kc5 {[%clk 0:00:03]} 80. Rc8+ {[%clk 0:00:06.9]}
80... Kb4 {[%clk 0:00:03.3]} 81. Rc6 {[%clk 0:00:07.2]} 81... Rg8 {[%clk
0:00:02]} 82. Rxb6 {[%clk 0:00:05.5]} 82... Rg5 {[%clk 0:00:01.6]} 83. Rb7
{[%clk 0:00:04.7]} 1-0